bitfinex/quotes_BTCUSD_20241027
["timestamp","ask_amount","ask_price","bid_price","bid_amount"]
[1730022423468,0.01880517,67105.0,67104.0,0.56595284]
[1730022423708,0.01880517,67105.0,67104.0,0.65317987]
[1730022425490,0.01880517,67105.0,67104.0,0.56595284]
[1730022425969,0.01880517,67105.0,67104.0,0.29952581]
[1730022426200,0.01880517,67105.0,67104.0,0.38675284]
[1730022427347,0.007642,67105.0,67104.0,0.38675284]
[1730022427581,0.007642,67105.0,67104.0,0.149022]
[1730022427582,0.01881158,67105.0,67104.0,0.149022]
[1730022431414,0.007642,67105.0,67104.0,0.149022]
[1730022431657,0.007642,67105.0,67104.0,0.23624903]
[1730022431903,0.01880808,67105.0,67104.0,0.23624903]
[1730022435089,0.01880647,67105.0,67104.0,0.23624903]
[1730022437558,0.007642,67105.0,67104.0,0.23624903]
[1730022437757,0.01880549,67105.0,67104.0,0.23624903]
[1730022438153,0.03430838,67105.0,67104.0,0.23624903]
[1730022439713,0.03430838,67105.0,67104.0,0.23081449]
[1730022441235,0.01880549,67105.0,67104.0,0.23081449]
[1730022441451,0.03430837,67105.0,67104.0,0.23081449]
[1730022442309,0.02314488,67105.0,67104.0,0.23081449]
[1730022442724,0.03430714,67105.0,67104.0,0.23081449]
[1730022442938,0.03430713,67105.0,67104.0,0.23081449]
[1730022451904,0.01880425,67105.0,67104.0,0.23081449]
[1730022452158,0.03430647,67105.0,67104.0,0.23081449]
[1730022453856,0.03430913,67105.0,67104.0,0.23081449]
[1730022454534,0.01880691,67105.0,67104.0,0.23081449]
[1730022455259,0.007642,67105.0,67104.0,0.23081449]
[1730022455485,0.01880769,67105.0,67104.0,0.23081449]
[1730022457570,0.007642,67105.0,67104.0,0.23081449]
[1730022457812,0.0188114,67105.0,67104.0,0.23081449]
[1730022461297,0.007642,67105.0,67104.0,0.23081449]
[1730022461534,0.0188119,67105.0,67104.0,0.23081449]
[1730022471871,0.0188119,67105.0,67104.0,0.23163549]
[1730022472826,0.007642,67105.0,67104.0,0.23163549]
[1730022473032,0.01881283,67105.0,67104.0,0.23163549]
[1730022477454,0.03431368,67105.0,67104.0,0.23163549]
[1730022480213,0.02314285,67105.0,67104.0,0.23163549]
[1730022480443,0.03431337,67105.0,67104.0,0.23163549]
[1730022480891,0.01881252,67105.0,67104.0,0.23163549]
[1730022482408,0.03431325,67105.0,67104.0,0.23163549]
[1730022482866,0.02314273,67105.0,67104.0,0.23163549]
[1730022483284,0.03431165,67105.0,67104.0,0.23163549]
[1730022483948,0.03431165,67105.0,67104.0,0.14440846]
[1730022484159,0.07898752,67105.0,67104.0,0.14440846]
[1730022484595,0.0789832,67105.0,67104.0,0.14440846]
[1730022485518,0.09293972,67105.0,67104.0,0.14440846]
[1730022486704,0.09293772,67105.0,67104.0,0.14440846]
[1730022487312,0.04826617,67105.0,67104.0,0.14440846]
[1730022487680,0.09293772,67105.0,67104.0,0.14440846]
[1730022489846,0.04826617,67105.0,67104.0,0.14440846]
[1730022490053,0.04825608,67105.0,67104.0,0.14440846]
[1730022493716,0.04824883,67105.0,67104.0,0.14440846]
[1730022493926,0.04824781,67105.0,67104.0,0.14440846]
[1730022497355,0.03430054,67105.0,67104.0,0.14440846]
[1730022497617,0.04824719,67105.0,67104.0,0.14440846]
[1730022498036,0.09287888,67105.0,67104.0,0.14440846]
[1730022498255,0.11519472,67105.0,67104.0,0.14440846]
[1730022498466,0.13751057,67105.0,67104.0,0.14440846]
[1730022498905,0.04824719,67105.0,67104.0,0.000821]
[1730022499121,0.40435703,67105.0,67104.0,0.000821]
[1730022499360,0.4043046,67105.0,67104.0,0.000821]
[1730022499554,0.2927778,67105.0,67104.0,0.000821]
[1730022499765,0.4043046,67105.0,67104.0,0.000821]
[1730022499972,0.2927778,67105.0,67104.0,0.000821]
[1730022500196,0.4043046,67105.0,67104.0,0.000821]
[1730022500401,0.2927778,67105.0,67104.0,0.000821]
[1730022500621,0.38198328,67105.0,67104.0,0.000821]
[1730022501064,0.37082574,67105.0,67104.0,0.000821]
[1730022501273,0.38197514,67105.0,67104.0,0.000821]
[1730022501714,0.29276966,67105.0,67104.0,0.149843]
[1730022501941,0.29266536,67105.0,67104.0,0.000821]
[1730022502586,0.12803905,67105.0,67104.0,0.000821]
[1730022502811,0.33866585,67105.0,67104.0,0.000821]
[1730022503015,0.39174968,67105.0,67104.0,0.000821]
[1730022503467,0.5407579,67105.0,67104.0,0.000821]
[1730022503693,0.3917379,67105.0,67104.0,0.000821]
[1730022504372,0.50316977,67105.0,67104.0,0.000821]
[1730022504800,0.65218977,67105.0,67104.0,0.000821]
[1730022505453,0.65218977,67105.0,67100.0,0.02669049]
[1730022505703,0.0668495,67102.0,67100.0,0.02669049]
[1730022505889,0.04071088,67101.0,67100.0,0.02669049]
[1730022506557,0.04069997,67101.0,67100.0,0.02669049]
[1730022506771,0.08526087,67101.0,67100.0,0.02669049]
[1730022506985,0.04069997,67101.0,67100.0,0.02669049]
[1730022507412,0.08525603,67101.0,67100.0,0.02669049]
[1730022507856,0.10307587,67101.0,67100.0,0.02669049]
[1730022508058,0.10307582,67101.0,67100.0,0.02669049]
[1730022508493,0.08525598,67101.0,67100.0,0.02669049]
[1730022508699,0.10307582,67101.0,67100.0,0.02669049]
[1730022508907,0.08525598,67101.0,67100.0,0.02669049]
[1730022509110,0.10307582,67101.0,67100.0,0.02669049]
[1730022509323,0.08525598,67101.0,67100.0,0.02669049]
[1730022509543,0.10307582,67101.0,67100.0,0.02669049]
[1730022509781,0.08525598,67101.0,67100.0,0.02669049]
[1730022509987,0.05851981,67101.0,67100.0,0.02669049]
[1730022510195,0.04469997,67101.0,67100.0,0.02669049]
[1730022510403,0.06251981,67101.0,67100.0,0.02669049]
[1730022512007,0.04469997,67101.0,67100.0,0.02669049]
[1730022515024,0.12934977,67101.0,67100.0,0.02669049]
[1730022515441,0.1293439,67101.0,67100.0,0.02669049]
[1730022515916,0.11152949,67101.0,67100.0,0.02669049]
[1730022517067,0.12934316,67101.0,67100.0,0.02669049]
[1730022517471,0.06250915,67101.0,67100.0,0.02669049]
[1730022517683,0.12930063,67101.0,67100.0,0.02669049]
[1730022517896,0.12930063,67101.0,67099.0,0.149033]
[1730022518108,0.06960862,67100.0,67097.0,0.149857]
[1730022518359,0.0406955,67099.0,67098.0,0.149035]
[1730022518999,0.02674858,67099.0,67098.0,0.149035]
[1730022519208,0.02953116,67099.0,67098.0,0.149035]
[1730022519405,0.02674819,67099.0,67098.0,0.149035]
[1730022519608,0.04066493,67099.0,67098.0,0.149035]
[1730022520857,0.04066493,67099.0,67098.0,0.240735]
[1730022522600,0.04066493,67099.0,67098.0,0.149035]
[1730022522819,0.04066493,67099.0,67097.0,0.08804803]
[1730022523039,0.01391878,67098.0,67097.0,0.23708403]
[1730022523267,0.02505239,67098.0,67097.0,0.23708403]
[1730022526661,0.02506019,67098.0,67097.0,0.23708403]
[1730022527316,0.02507058,67098.0,67097.0,0.23708403]
[1730022530246,0.002,67101.0,67098.0,0.149035]
[1730022530451,0.02508583,67100.0,67098.0,0.149035]
[1730022530660,0.02508583,67099.0,67098.0,0.149035]
[1730022531099,0.04070394,67099.0,67098.0,0.149035]
[1730022532154,0.02676736,67099.0,67098.0,0.149035]
[1730022532364,0.04071007,67099.0,67098.0,0.149035]
[1730022533683,0.04071007,67099.0,67098.0,0.245835]
[1730022534125,0.0407107,67099.0,67098.0,0.245835]
[1730022535401,0.02509259,67099.0,67098.0,0.245835]
[1730022539694,0.02509259,67099.0,67098.0,0.149035]
[1730022540579,0.02509259,67099.0,67097.0,0.08804803]
[1730022540795,0.02509259,67099.0,67097.0,0.000821]
[1730022541013,0.02509259,67098.0,67097.0,0.149856]
[1730022541226,0.0407119,67098.0,67097.0,0.149856]
[1730022541438,0.02509486,67098.0,67097.0,0.149856]
[1730022541716,0.04071418,67098.0,67097.0,0.149856]
[1730022543911,0.04071418,67098.0,67097.0,0.149858]
[1730022544352,0.04071418,67098.0,67097.0,0.14260981]
[1730022544994,0.04071418,67098.0,67096.0,0.000821]
[1730022545232,0.02509486,67097.0,67096.0,0.000821]
[1730022545655,0.02509486,67097.0,67096.0,0.149861]
[1730022545860,0.0407142,67097.0,67096.0,0.149861]
[1730022546292,0.10761429,67097.0,67096.0,0.000821]
[1730022547191,0.12689035,67097.0,67096.0,0.000821]
[1730022547413,0.11294876,67097.0,67096.0,0.000821]
[1730022547633,0.12693531,67097.0,67096.0,0.149861]
[1730022548605,0.06003522,67097.0,67096.0,0.149861]
[1730022549045,0.12695382,67097.0,67096.0,0.149861]
[1730022549266,0.04218834,67097.0,67096.0,0.149861]
[1730022550158,0.06003611,67097.0,67096.0,0.149861]
[1730022551132,0.23973611,67097.0,67096.0,0.000821]
[1730022551372,0.40442157,67097.0,67096.0,0.000821]
[1730022552316,0.40299207,67097.0,67093.0,0.1492795]
[1730022552554,0.06691534,67094.0,67093.0,0.0002345]
[1730022552813,0.10986028,67094.0,67093.0,0.0002345]
[1730022553231,0.10986028,67094.0,67093.0,0.00019217]
[1730022553232,0.12547961,67094.0,67093.0,0.00019217]
[1730022553450,0.12547961,67094.0,67093.0,0.14923817]
[1730022554823,0.11153674,67094.0,67093.0,0.14923817]
[1730022555065,0.12548585,67094.0,67093.0,0.14923817]
[1730022556054,0.12548585,67094.0,67093.0,0.00019217]
[1730022559937,0.05857051,67094.0,67093.0,0.00019217]
[1730022560156,0.12553169,67094.0,67093.0,0.00019217]
[1730022560605,0.05857051,67094.0,67093.0,0.00019217]
[1730022560821,0.12553421,67094.0,67093.0,0.00019217]
[1730022561069,0.05857051,67094.0,67093.0,0.00019217]
[1730022561499,0.12553243,67094.0,67093.0,0.00019217]
[1730022561968,0.12553331,67094.0,67093.0,0.00019217]
[1730022562182,0.11158776,67094.0,67093.0,0.14923817]
[1730022562447,0.12554447,67094.0,67093.0,0.14923817]
[1730022562658,0.12554438,67094.0,67093.0,0.14923817]
[1730022563817,0.12554257,67094.0,67093.0,0.14923817]
[1730022564032,0.12554255,67094.0,67093.0,0.14923817]
[1730022564246,0.12554255,67094.0,67093.0,0.00019217]
[1730022564910,0.12554221,67094.0,67093.0,0.00019217]
[1730022565564,0.12554229,67094.0,67093.0,0.00019217]
[1730022565783,0.12718629,67094.0,67093.0,0.00019217]
[1730022566006,0.11323745,67094.0,67093.0,0.00019217]
[1730022566260,0.12718625,67094.0,67093.0,0.00019217]
[1730022569906,0.09817274,67094.0,67093.0,0.00019217]
[1730022570125,0.10933273,67094.0,67093.0,0.00019217]
[1730022570350,0.06022811,67094.0,67093.0,0.00019217]
[1730022570562,0.127181,67094.0,67093.0,0.00019217]
[1730022571019,0.06022811,67094.0,67093.0,0.00019217]
[1730022571463,0.12718076,67094.0,67093.0,0.00019217]
[1730022571897,0.06022811,67094.0,67093.0,0.00019217]
[1730022572585,0.12717948,67094.0,67093.0,0.00019217]
[1730022573932,0.1271788,67094.0,67093.0,0.00019217]
[1730022574152,0.12718103,67094.0,67093.0,0.00019217]
[1730022577394,0.11323223,67094.0,67093.0,0.00019217]
[1730022577615,0.12718501,67094.0,67093.0,0.00019217]
[1730022578755,0.12719314,67094.0,67093.0,0.00019217]
[1730022580784,0.06023432,67094.0,67093.0,0.00019217]
[1730022581034,0.3142963,67094.0,67093.0,0.00019217]
[1730022581261,0.27132531,67094.0,67093.0,0.00019217]
[1730022581525,0.31431358,67094.0,67093.0,0.00019217]
[1730022583293,0.31430638,67094.0,67093.0,0.00019217]
[1730022585561,0.31430163,67094.0,67093.0,0.00019217]
[1730022586250,0.46334563,67094.0,67093.0,0.00019217]
[1730022586478,0.374069,67094.0,67093.0,0.00019217]
[1730022586942,0.31430057,67094.0,67093.0,0.00019217]
[1730022587468,0.225025,67094.0,67093.0,0.00019217]
[1730022588831,0.18204148,67094.0,67093.0,0.00019217]
[1730022589062,0.48565896,67094.0,67093.0,0.00019217]
[1730022589795,0.33661496,67094.0,67093.0,0.00019217]
[1730022592351,0.32266116,67094.0,67093.0,0.00019217]
[1730022592564,0.33661387,67094.0,67093.0,0.00019217]
[1730022592780,0.32544922,67094.0,67093.0,0.00019217]
[1730022593006,0.32267283,67094.0,67093.0,0.00019217]
[1730022593234,0.3366255,67094.0,67093.0,0.00019217]
[1730022596631,0.29365155,67094.0,67093.0,0.00019217]
[1730022596856,0.3366298,67094.0,67093.0,0.00019217]
[1730022597074,0.33662993,67094.0,67093.0,0.00019217]
[1730022597287,0.22502838,67094.0,67093.0,0.00019217]
[1730022597765,0.22505756,67094.0,67093.0,0.00019217]
[1730022598236,0.22505727,67094.0,67093.0,0.00019217]
[1730022598706,0.22505175,67094.0,67093.0,0.00019217]
[1730022601888,0.37409575,67094.0,67093.0,0.00019217]
[1730022603041,0.1960253,67094.0,67093.0,0.00019217]
[1730022603262,0.37408931,67094.0,67093.0,0.00019217]
[1730022604148,0.22504531,67094.0,67093.0,0.00019217]
[1730022606506,0.18207337,67094.0,67093.0,0.00019217]
[1730022606732,0.22504257,67094.0,67093.0,0.00019217]
[1730022606971,0.22504261,67094.0,67093.0,0.00019217]
[1730022610660,0.22500191,67094.0,67093.0,0.00019217]
[1730022614175,0.22500846,67094.0,67093.0,0.00019217]
[1730022615921,0.22500906,67094.0,67093.0,0.00019217]
[1730022618874,0.19598645,67094.0,67093.0,0.00019217]
[1730022619083,0.22501157,67094.0,67093.0,0.00019217]
[1730022620501,0.22501157,67094.0,67093.0,0.14923817]
[1730022620738,0.22501157,67094.0,67093.0,0.3347652]
[1730022621207,0.22503237,67094.0,67093.0,0.24753817]
[1730022621432,0.06024223,67094.0,67093.0,0.24753817]
[1730022622137,0.22503476,67094.0,67093.0,0.24753817]
[1730022622347,0.06024223,67094.0,67093.0,0.24753817]
[1730022622782,0.22503622,67094.0,67093.0,0.24753817]
[1730022623011,0.06024223,67094.0,67093.0,0.24753817]
[1730022623240,0.22503593,67094.0,67093.0,0.09849217]
[1730022623455,0.31431716,67094.0,67093.0,0.09849217]
[1730022624793,0.31432846,67094.0,67093.0,0.09849217]
[1730022625256,0.31432478,67094.0,67093.0,0.09849217]
[1730022625744,0.31432478,67094.0,67093.0,0.09704076]
[1730022625958,0.31432478,67094.0,67093.0,0.09668877]
[1730022627102,0.2250371,67094.0,67093.0,0.09668877]
[1730022627317,0.22503514,67094.0,67093.0,0.09668877]
[1730022628246,0.31432282,67094.0,67093.0,0.09668877]
[1730022628918,0.31432165,67094.0,67093.0,0.09668877]
[1730022629373,0.31431756,67094.0,67093.0,0.09668877]
[1730022629583,0.31432542,67094.0,67093.0,0.09668877]
[1730022630902,0.22503498,67094.0,67093.0,0.09668877]
[1730022634248,0.22502829,67094.0,67093.0,0.09668877]
[1730022634703,0.22502829,67094.0,67093.0,0.09751077]
[1730022635171,0.06023133,67094.0,67093.0,0.3337838]
[1730022635432,0.06023133,67094.0,67093.0,0.4087838]
[1730022635664,0.02675517,67094.0,67093.0,0.4087838]
[1730022635907,0.04257,67094.0,67093.0,0.4087838]
[1730022636415,0.04256944,67094.0,67093.0,0.4087838]
[1730022637106,0.04256944,67094.0,67093.0,0.56428761]
[1730022637359,0.03140948,67094.0,67093.0,0.56428761]
[1730022637594,0.001644,67094.0,67093.0,0.56428761]
[1730022645614,0.001644,67094.0,67093.0,0.65151464]
[1730022645850,0.001644,67094.0,67093.0,0.56428761]
[1730022655058,0.001644,67094.0,67093.0,0.47706058]
[1730022655282,0.001644,67094.0,67093.0,0.57651464]
[1730022657337,0.01557421,67094.0,67093.0,0.57651464]
[1730022658493,0.01557534,67094.0,67093.0,0.57651464]
[1730022661227,0.01557816,67094.0,67093.0,0.57651464]
[1730022661678,0.01558017,67094.0,67093.0,0.57651464]
[1730022663567,0.02673419,67094.0,67093.0,0.39706058]
[1730022663788,0.02673419,67094.0,67093.0,0.38759884]
[1730022664006,0.04904239,67094.0,67093.0,0.38759884]
[1730022665203,0.04904239,67094.0,67093.0,0.47482587]
[1730022665870,0.04904239,67094.0,67093.0,0.38759884]
[1730022666347,0.04904239,67094.0,67093.0,0.47482587]
[1730022668302,0.01279802,67094.0,67093.0,0.47482587]
[1730022668521,0.04907505,67094.0,67093.0,0.47482587]
[1730022671923,0.04908242,67094.0,67093.0,0.47482587]
[1730022672390,0.04907999,67094.0,67093.0,0.47482587]
[1730022675161,0.02675717,67094.0,67093.0,0.47482587]
[1730022675585,0.001644,67094.0,67093.0,0.47482587]
[1730022675791,0.01559673,67094.0,67093.0,0.47482587]
[1730022675972,0.02675891,67094.0,67093.0,0.47482587]
[1730022678416,0.02675939,67094.0,67093.0,0.47482587]
[1730022679356,0.02675948,67094.0,67093.0,0.47482587]
[1730022682868,0.02676209,67094.0,67093.0,0.47482587]
[1730022683323,0.02676478,67094.0,67093.0,0.47482587]
[1730022686827,0.0156036,67094.0,67093.0,0.47482587]
[1730022687050,0.02677128,67094.0,67093.0,0.47482587]
[1730022687269,0.02677128,67094.0,67093.0,0.57362587]
[1730022687487,0.02677128,67094.0,67093.0,0.65542587]
[1730022687699,0.02677128,67094.0,67093.0,0.66042587]
[1730022687951,0.0156036,67094.0,67093.0,0.66042587]
[1730022689283,0.001644,67094.0,67093.0,0.66042587]
[1730022691061,0.001644,67094.0,67093.0,0.65754057]
[1730022691916,0.001644,67094.0,67093.0,0.64591821]
[1730022692122,0.001644,67094.0,67093.0,0.64673921]
[1730022692755,0.001644,67094.0,67093.0,0.73396624]
[1730022692973,0.001644,67094.0,67093.0,0.83396624]
[1730022694109,0.001644,67094.0,67093.0,0.83596624]
[1730022694329,0.001644,67094.0,67093.0,0.83396624]
[1730022697061,0.001644,67094.0,67093.0,0.83113561]
[1730022697955,0.001644,67094.0,67093.0,0.82613561]
[1730022698435,0.001644,67094.0,67093.0,0.73890858]
[1730022700560,0.001644,67094.0,67093.0,0.82813561]
[1730022702110,0.001644,67094.0,67093.0,0.82613561]
[1730022703229,0.001644,67094.0,67093.0,0.73890858]
[1730022703645,0.001644,67094.0,67093.0,0.56445452]
[1730022703857,0.001644,67094.0,67093.0,0.73890858]
[1730022705569,0.001644,67094.0,67093.0,0.82613561]
[1730022706679,0.001644,67094.0,67093.0,0.73890858]
[1730022710039,0.001644,67094.0,67093.0,0.56445452]
[1730022710251,0.001644,67094.0,67093.0,0.73890858]
[1730022716463,0.015602,67094.0,67093.0,0.73890858]
[1730022717584,0.01560653,67094.0,67093.0,0.73890858]
[1730022720748,0.0156069,67094.0,67093.0,0.73890858]
[1730022723615,0.01560709,67094.0,67093.0,0.73890858]
[1730022728361,0.01560709,67094.0,67093.0,0.37885452]
[1730022728591,0.01560709,67094.0,67093.0,0.46608155]
[1730022728815,0.0491172,67094.0,67093.0,0.46608155]
[1730022729268,0.0491172,67094.0,67093.0,0.55330858]
[1730022730191,0.04911378,67094.0,67093.0,0.55330858]
[1730022732372,0.0267739,67094.0,67093.0,0.55330858]
[1730022735046,0.04909638,67094.0,67093.0,0.55330858]
[1730022735260,0.04907928,67094.0,67093.0,0.55330858]
[1730022735507,0.02675679,67094.0,67093.0,0.55330858]
[1730022739020,0.01559148,67094.0,67093.0,0.55330858]
[1730022739256,0.01280198,67094.0,67093.0,0.55330858]
[1730022739504,0.02674936,67094.0,67093.0,0.55330858]
[1730022745288,0.01559142,67094.0,67093.0,0.55330858]
[1730022746615,0.01559249,67094.0,67093.0,0.73600858]
[1730022747526,0.01559249,67094.0,67093.0,0.65290858]
[1730022748604,0.01559249,67094.0,67093.0,0.65281911]
[1730022750806,0.001642,67100.0,67099.0,0.154033]
[1730022751023,0.001642,67100.0,67099.0,0.57199087]
[1730022753844,0.001642,67100.0,67099.0,0.65269087]
[1730022754064,0.002,67103.0,67099.0,0.65269087]
[1730022754065,0.002,67103.0,67102.0,0.32848006]
[1730022754305,0.002,67103.0,67102.0,0.57198387]
[1730022756049,0.22240179,67115.0,67104.0,0.154022]
[1730022756311,0.01115581,67114.0,67104.0,0.30452581]
[1730022756532,0.01115581,67113.0,67104.0,0.30452581]
[1730022756739,0.01115581,67112.0,67104.0,0.30452581]
[1730022756952,0.01115581,67111.0,67104.0,0.30452581]
[1730022757169,0.01115581,67110.0,67104.0,0.30452581]
[1730022757603,0.01115581,67109.0,67104.0,0.30452581]
[1730022757820,0.01115581,67108.0,67104.0,0.30452581]
[1730022758031,0.26703072,67115.0,67104.0,0.30452581]
[1730022758230,0.01115216,67114.0,67104.0,0.30452581]
[1730022758456,0.01115216,67113.0,67104.0,0.30452581]
[1730022758681,0.01115216,67112.0,67104.0,0.30452581]
[1730022758937,0.007642,67105.0,67104.0,0.30452581]
[1730022760465,0.007642,67105.0,67104.0,0.47897987]
[1730022764702,0.007642,67105.0,67104.0,0.47897987]
[1730022774403,0.02157896,67105.0,67104.0,0.47897987]
[1730022778339,0.02158692,67105.0,67104.0,0.47897987]
[1730022779326,0.0327457,67105.0,67104.0,0.47897987]
[1730022781156,0.03275364,67105.0,67104.0,0.47897987]
[1730022784858,0.03276492,67105.0,67104.0,0.47897987]
[1730022785686,0.03277525,67105.0,67104.0,0.47897987]
[1730022788265,0.01881206,67105.0,67104.0,0.47897987]
[1730022788477,0.03277898,67105.0,67104.0,0.47897987]
[1730022791348,0.03277898,67105.0,67104.0,0.39175284]
[1730022792154,0.0188144,67105.0,67104.0,0.39175284]
[1730022792398,0.03277999,67105.0,67104.0,0.39175284]
[1730022797875,0.03277999,67105.0,67104.0,0.47897987]
[1730022798354,0.03277999,67105.0,67104.0,0.39175284]
[1730022799551,0.1937144,67105.0,67104.0,0.149022]
[1730022799787,0.20768674,67105.0,67103.0,0.149024]
[1730022800001,0.01396915,67104.0,67103.0,0.149024]
[1730022800229,0.02514474,67104.0,67103.0,0.23625103]
[1730022800664,0.04423405,67104.0,67103.0,0.23625103]
[1730022803207,0.03304744,67104.0,67103.0,0.23625103]
[1730022803447,0.04421394,67104.0,67103.0,0.23625103]
[1730022804559,0.04421394,67104.0,67103.0,0.23333545]
[1730022807939,0.03025581,67104.0,67103.0,0.23333545]
[1730022808144,0.04420896,67104.0,67103.0,0.23333545]
[1730022809638,0.044208,67104.0,67103.0,0.23333545]
[1730022814445,0.01908931,67104.0,67103.0,0.23333545]
[1730022814644,0.04420242,67104.0,67103.0,0.23333545]
[1730022818931,0.04420242,67104.0,67103.0,0.23415645]
[1730022821942,0.01908931,67104.0,67103.0,0.23415645]
[1730022822145,0.04420627,67104.0,67103.0,0.23415645]
[1730022824374,0.04420627,67104.0,67103.0,0.14692942]
[1730022824585,0.04420627,67104.0,67103.0,0.23415645]
[1730022824802,0.05816248,67104.0,67103.0,0.23415645]
[1730022825251,0.07602343,67104.0,67103.0,0.23415645]
[1730022825693,0.07602785,67104.0,67103.0,0.23415645]
[1730022829188,0.07607458,67104.0,67103.0,0.23415645]
[1730022831478,0.07771658,67104.0,67103.0,0.23415645]
[1730022833162,0.07771651,67104.0,67103.0,0.23415645]
[1730022834845,0.07771652,67104.0,67103.0,0.23415645]
[1730022841198,0.02073131,67104.0,67103.0,0.23415645]
[1730022841345,0.07771785,67104.0,67103.0,0.23415645]
[1730022843520,0.0525769,67104.0,67103.0,0.23415645]
[1730022843729,0.07771817,67104.0,67103.0,0.23415645]
[1730022850932,0.04978343,67104.0,67103.0,0.23415645]
[1730022851152,0.05862548,67104.0,67103.0,0.23415645]
[1730022851394,0.07789645,67104.0,67103.0,0.23415645]
[1730022853889,0.10024214,67104.0,67103.0,0.23415645]
[1730022854575,0.08097117,67104.0,67103.0,0.23415645]
[1730022854799,0.04996337,67104.0,67103.0,0.23415645]
[1730022855010,0.07789369,67104.0,67103.0,0.23415645]
[1730022855245,0.10023908,67104.0,67103.0,0.23415645]
[1730022862382,0.08627322,67104.0,67103.0,0.23415645]
[1730022862600,0.10023942,67104.0,67103.0,0.23415645]
[1730022863669,0.10023969,67104.0,67103.0,0.23415645]
[1730022865988,0.10024101,67104.0,67103.0,0.23415645]
[1730022866442,0.0348794,67104.0,67103.0,0.23415645]
[1730022866657,0.08097143,67104.0,67103.0,0.23415645]
[1730022867048,0.10024699,67104.0,67103.0,0.23415645]
[1730022870084,0.10024699,67104.0,67103.0,0.33105645]
[1730022870504,0.08097143,67104.0,67103.0,0.33105645]
[1730022873428,0.04465864,67104.0,67103.0,0.56878729]
[1730022873660,0.04465864,67104.0,67103.0,0.65538729]
[1730022873661,0.08097132,67104.0,67103.0,0.65538729]
[1730022873833,0.04912786,67104.0,67103.0,0.65538729]
[1730022874698,0.04912786,67104.0,67103.0,0.66713827]
[1730022875046,0.02678157,67104.0,67103.0,0.66713827]
[1730022877133,0.001642,67104.0,67103.0,0.66713827]
[1730022877292,0.02677353,67104.0,67103.0,0.66713827]
[1730022877492,0.02677246,67104.0,67103.0,0.66713827]
[1730022884982,0.0155989,67104.0,67103.0,0.66713827]
[1730022885203,0.02676442,67104.0,67103.0,0.66713827]
[1730022888693,0.0155989,67104.0,67103.0,0.66713827]
[1730022888918,0.026764,67104.0,67103.0,0.66713827]
[1730022892686,0.02676447,67104.0,67103.0,0.66713827]
[1730022893444,0.02676467,67104.0,67103.0,0.66713827]
[1730022895180,0.02676496,67104.0,67103.0,0.66713827]
[1730022895785,0.01559893,67104.0,67103.0,0.66713827]
[1730022896436,0.001642,67104.0,67103.0,0.66713827]
[1730022898194,0.01280634,67104.0,67103.0,0.66713827]
[1730022899488,0.001642,67104.0,67103.0,0.66713827]
[1730022899685,0.01280715,67104.0,67103.0,0.66713827]
[1730022901165,0.02676449,67104.0,67103.0,0.66713827]
[1730022903036,0.01280715,67104.0,67103.0,0.66713827]
[1730022903236,0.02676735,67104.0,67103.0,0.66713827]
[1730022905365,0.02676735,67104.0,67103.0,0.57991124]
[1730022906447,0.02676735,67104.0,67103.0,0.39641124]
[1730022907862,0.02676735,67104.0,67103.0,0.40141124]
[1730022908069,0.02676735,67104.0,67103.0,0.39641124]
[1730022909039,0.04073353,67104.0,67103.0,0.40141124]
[1730022909266,0.04073353,67104.0,67103.0,0.39641124]
[1730022909902,0.04073353,67104.0,67103.0,0.29743323]
[1730022910112,0.04073353,67104.0,67103.0,0.38466026]
[1730022910329,0.05860975,67104.0,67103.0,0.38466026]
[1730022913920,0.04073353,67104.0,67103.0,0.38466026]
[1730022914129,0.001642,67104.0,67103.0,0.38466026]
[1730022914358,0.04073153,67104.0,67103.0,0.38466026]
[1730022914563,0.001642,67104.0,67103.0,0.38466026]
[1730022914769,0.029563,67104.0,67103.0,0.38466026]
[1730022914973,0.0407314,67104.0,67103.0,0.38466026]
[1730022918017,0.001642,67104.0,67103.0,0.38466026]
[1730022918216,0.04072922,67104.0,67103.0,0.38466026]
[1730022920543,0.0267695,67104.0,67103.0,0.38466026]
[1730022923203,0.04072902,67104.0,67103.0,0.38466026]
[1730022925303,0.0267695,67104.0,67103.0,0.38466026]
[1730022925509,0.04072942,67104.0,67103.0,0.38466026]
[1730022925763,0.04072962,67104.0,67103.0,0.38466026]
[1730022929129,0.04073022,67104.0,67103.0,0.38466026]
[1730022929548,0.04073061,67104.0,67103.0,0.38466026]
[1730022932711,0.04072902,67104.0,67103.0,0.38466026]
[1730022933352,0.06306424,67104.0,67103.0,0.38466026]
[1730022936376,0.01280978,67104.0,67103.0,0.38466026]
[1730022936578,0.05189969,67104.0,67103.0,0.38466026]
[1730022936796,0.06306807,67104.0,67103.0,0.38466026]
[1730022936997,0.06306809,67104.0,67103.0,0.38466026]
[1730022940190,0.01281039,67104.0,67103.0,0.38466026]
[1730022940371,0.06307497,67104.0,67103.0,0.38466026]
[1730022941020,0.06307506,67104.0,67103.0,0.38466026]
[1730022944032,0.06307751,67104.0,67103.0,0.38466026]
[1730022944241,0.06307803,67104.0,67103.0,0.38466026]
[1730022947616,0.01281219,67104.0,67103.0,0.38466026]
[1730022947851,0.0630818,67104.0,67103.0,0.38466026]
[1730022950240,0.08095775,67104.0,67103.0,0.38466026]
[1730022951391,0.001642,67104.0,67103.0,0.38466026]
[1730022951595,0.06700094,67104.0,67103.0,0.38466026]
[1730022951812,0.08096652,67104.0,67103.0,0.38466026]
[1730022953937,0.08096646,67104.0,67103.0,0.38466026]
[1730022955353,0.08096645,67104.0,67103.0,0.38466026]
[1730022958205,0.08096659,67104.0,67103.0,0.38466026]
[1730022958344,0.06700098,67104.0,67103.0,0.38466026]
[1730022958524,0.04912505,67104.0,67103.0,0.38466026]
[1730022959135,0.02678008,67104.0,67103.0,0.38466026]
[1730022959337,0.08096662,67104.0,67103.0,0.38466026]
[1730022959765,0.01560761,67104.0,67103.0,0.38466026]
[1730022959977,0.08096665,67104.0,67103.0,0.38466026]
[1730022960223,0.08096667,67104.0,67103.0,0.38466026]
[1730022966299,0.08096734,67104.0,67103.0,0.38466026]
[1730022973641,0.04465644,67104.0,67103.0,0.38466026]
[1730022973865,0.0809641,67104.0,67103.0,0.38466026]
[1730022974082,0.01560647,67104.0,67103.0,0.38466026]
[1730022974297,0.08096028,67104.0,67103.0,0.38466026]
[1730022974754,0.08095954,67104.0,67103.0,0.38466026]
[1730022975584,0.06308514,67104.0,67103.0,0.38466026]
[1730022977564,0.001642,67104.0,67103.0,0.38466026]
[1730022977797,0.06307536,67104.0,67103.0,0.38466026]
[1730022980900,0.06307509,67104.0,67103.0,0.38466026]
[1730022981523,0.05190477,67104.0,67103.0,0.38466026]
[1730022981726,0.0630742,67104.0,67103.0,0.38466026]
[1730022984798,0.06307385,67104.0,67103.0,0.38466026]
[1730022985416,0.001642,67104.0,67103.0,0.38466026]
[1730022985619,0.06307378,67104.0,67103.0,0.38466026]
[1730022985825,0.001642,67104.0,67103.0,0.38466026]